fUSD/lending_fUSD_20260607
["ID","MTS","AMOUNT","RATE_DAILY","PERIOD"]
[424380955,1780824648000,-548.29484665,0.00014411,2]
[424380961,1780824648000,-150.0,0.00014424,2]
[424380960,1780824648000,-150.0,0.00014424,2]
[424380959,1780824648000,-150.0,0.00014422,2]
[424380958,1780824648000,-150.0,0.00014416,2]
[424380963,1780824648000,-161.58263054,0.00014426,2]
[424380928,1780824648000,-548.29484665,0.00014351,2]
[424380948,1780824648000,-161.58263054,0.00014396,2]
[424380930,1780824648000,-150.0,0.00014353,2]
[424380901,1780824648000,-150.0,0.00014268,2]
[424380922,1780824648000,-150.0,0.00014331,2]
[424380965,1780824648000,-150.0,0.00014438,2]
[424380897,1780824648000,-500.0,0.00014249,2]
[424380900,1780824648000,-150.0,0.00014263,2]
[424380899,1780824648000,-548.29484665,0.0001426,2]
[424380902,1780824648000,-150.0,0.00014269,2]
[424380909,1780824648000,-400.037952,0.00014282,2]
[424380898,1780824648000,-161.58263054,0.0001426,2]
[424380907,1780824648000,-384.891465,0.00014281,2]
[424380906,1780824648000,-150.0,0.00014281,2]
[424380908,1780824648000,-468.312846,0.00014282,2]
[424380905,1780824648000,-548.29484665,0.00014275,2]
[424380904,1780824648000,-161.58263054,0.00014275,2]
[424380903,1780824648000,-6396.6126704,0.00014272,2]
[424380911,1780824648000,-161.58263054,0.0001429,2]
[424380910,1780824648000,-150.0,0.0001429,2]
[424380913,1780824648000,-150.0,0.00014299,2]
[424380912,1780824648000,-548.29484665,0.0001429,2]
[424380916,1780824648000,-161.58263054,0.00014305,2]
[424380914,1780824648000,-150.0,0.00014299,2]
[424380920,1780824648000,-161.58263054,0.0001432,2]
[424380917,1780824648000,-548.29484665,0.00014305,2]
[424380919,1780824648000,-150.0,0.00014316,2]
[424380918,1780824648000,-150.0,0.00014311,2]
[424380915,1780824648000,-150.0,0.00014299,2]
[424380921,1780824648000,-548.29484665,0.0001432,2]
[424380926,1780824648000,-548.29484665,0.00014335,2]
[424380925,1780824648000,-161.58263054,0.00014335,2]
[424380923,1780824648000,-150.0,0.00014332,2]
[424380924,1780824648000,-150.0,0.00014334,2]
[424380931,1780824648000,-150.0,0.00014362,2]
[424380974,1780824648000,-161.58263054,0.00014472,2]
[424381022,1780824648000,-548.29484665,0.00014608,2]
[424380976,1780824648000,-150.0,0.00014475,2]
[424381001,1780824648000,-150.0,0.00014549,2]
[424381003,1780824648000,-161.58263054,0.00014562,2]
[424381004,1780824648000,-548.29484665,0.00014562,2]
[424381002,1780824648000,-150.0,0.00014549,2]
[424381008,1780824648000,-548.29484665,0.00014578,2]
[424381007,1780824648000,-161.58263054,0.00014578,2]
[424381012,1780824648000,-161.58263054,0.00014593,2]
[424381020,1780824648000,-150.0,0.00014606,2]
[424381011,1780824648000,-150.0,0.00014585,2]
[424381019,1780824648000,-443.0,0.00014605,2]
[424381009,1780824648000,-150.0,0.0001458,2]
[424381013,1780824648000,-548.29484665,0.00014593,2]
[424381017,1780824648000,-687.0,0.00014605,2]
[424381015,1780824648000,-640.0,0.00014605,2]
[424381014,1780824648000,-150.0,0.00014598,2]
[424381016,1780824648000,-623.0,0.00014605,2]
[424381010,1780824648000,-150.0,0.00014581,2]
[424381027,1780824648000,-161.58263054,0.00014623,2]
[424381032,1780824648000,-548.29484665,0.00014638,2]
[424381021,1780824648000,-161.58263054,0.00014608,2]
[424381023,1780824648000,-150.0,0.00014612,2]
[424381024,1780824648000,-150.0,0.00014612,2]
[424381030,1780824648000,-150.0,0.00014634,2]
[424381026,1780824648000,-150.0,0.00014616,2]
[424381025,1780824648000,-150.0,0.00014612,2]
[424381028,1780824648000,-548.29484665,0.00014623,2]
[424381029,1780824648000,-150.0,0.00014627,2]
[424381031,1780824648000,-161.58263054,0.00014638,2]
[424380973,1780824648000,-150.0,0.00014459,2]
[424380998,1780824648000,-150.0,0.00014546,2]
[424380996,1780824648000,-548.29484665,0.00014532,2]
[424381018,1780824648000,-348.0,0.00014605,2]
[424380999,1780824648000,-161.58263054,0.00014547,2]
[424380964,1780824648000,-548.29484665,0.00014426,2]
[424381000,1780824648000,-548.29484665,0.00014547,2]
[424380975,1780824648000,-548.29484665,0.00014472,2]
[424380968,1780824648000,-548.29484665,0.00014441,2]
[424380966,1780824648000,-150.0,0.0001444,2]
[424380970,1780824648000,-161.58263054,0.00014456,2]
[424380971,1780824648000,-548.29484665,0.00014456,2]
[424380967,1780824648000,-161.58263054,0.00014441,2]
[424380972,1780824648000,-150.0,0.00014457,2]
[424380969,1780824648000,-150.0,0.00014456,2]
[424380978,1780824648000,-150.0,0.00014487,2]
[424380983,1780824648000,-548.29484665,0.00014487,2]
[424380981,1780824648000,-161.58263054,0.00014487,2]
[424380984,1780824648000,-150.0,0.00014493,2]
[424380979,1780824648000,-150.0,0.00014487,2]
[424380977,1780824648000,-150.0,0.0001448,2]
[424381005,1780824648000,-150.0,0.00014563,2]
[424380997,1780824648000,-150.0,0.00014543,2]
[424380987,1780824648000,-161.58263054,0.00014502,2]
[424381006,1780824648000,-150.0,0.00014564,2]
[424380994,1780824648000,-150.0,0.00014528,2]
[424380995,1780824648000,-161.58263054,0.00014532,2]
[424380991,1780824648000,-548.29484665,0.00014517,2]
[424380992,1780824648000,-150.0,0.00014518,2]
[424380985,1780824648000,-612.55,0.00014497,2]
[424380988,1780824648000,-548.29484665,0.00014502,2]
[424380993,1780824648000,-150.0,0.00014522,2]
[424380986,1780824648000,-150.0,0.00014501,2]
[424380990,1780824648000,-161.58263054,0.00014517,2]
[424380989,1780824648000,-150.0,0.0001451,2]
[424381077,1780824649000,-150.0,0.00014775,2]
[424381078,1780824649000,-161.58263054,0.0001479,2]
[424381087,1780824649000,-548.29484665,0.00014805,2]
[424381088,1780824649000,-150.0,0.0001481,2]
[424381076,1780824649000,-150.0,0.00014775,2]
[424381071,1780824649000,-161.58263054,0.00014759,2]
[424381075,1780824649000,-548.29484665,0.00014774,2]
[424381069,1780824649000,-500.0,0.00014755,4]
[424381066,1780824649000,-150.0,0.00014754,2]
[424381070,1780824649000,-150.0,0.00014757,2]
[424381072,1780824649000,-548.29484665,0.00014759,2]
[424381074,1780824649000,-161.58263054,0.00014774,2]
[424381086,1780824649000,-161.58263054,0.00014805,2]
[424381068,1780824649000,-500.0,0.00014755,3]
[424381081,1780824649000,-150.0,0.00014796,2]
[424381094,1780824649000,-161.58263054,0.00014835,2]
[424381085,1780824649000,-250.0,0.000148,2]
[424381080,1780824649000,-150.0,0.00014792,2]
[424381079,1780824649000,-548.29484665,0.0001479,2]
[424381084,1780824649000,-150.0,0.00014799,2]
[424381082,1780824649000,-150.0,0.00014799,2]
[424381089,1780824649000,-150.0,0.00014817,2]
[424381091,1780824649000,-548.29484665,0.0001482,2]
[424381096,1780824649000,-150.0,0.00014839,2]
[424381100,1780824649000,-548.29484665,0.0001485,2]
[424381101,1780824649000,-150.0,0.0001486,2]
[424381092,1780824649000,-150.0,0.00014828,2]
[424381095,1780824649000,-548.29484665,0.00014835,2]
[424381090,1780824649000,-161.58263054,0.0001482,2]
[424381065,1780824649000,-548.29484665,0.00014744,2]
[424381083,1780824649000,-150.0,0.00014799,2]
[424381067,1780824649000,-500.0,0.00014755,2]
[424381046,1780824649000,-150.0,0.00014687,2]
[424381062,1780824649000,-150.0,0.00014737,2]
[424381034,1780824649000,-150.0,0.00014649,2]
[424381033,1780824649000,-150.0,0.00014643,2]
[424381093,1780824649000,-150.0,0.0001483,2]
[424381036,1780824649000,-161.58263054,0.00014653,2]
[424381047,1780824649000,-150.0,0.00014687,2]
[424381040,1780824649000,-150.0,0.00014669,2]
[424381035,1780824649000,-150.0,0.00014651,2]
[424381039,1780824649000,-548.29484665,0.00014668,2]
[424381037,1780824649000,-548.29484665,0.00014653,2]
[424381043,1780824649000,-150.0,0.00014674,2]
[424381042,1780824649000,-150.0,0.00014674,2]
[424381038,1780824649000,-161.58263054,0.00014668,2]
[424381041,1780824649000,-150.0,0.0001467,2]
[424381045,1780824649000,-548.29484665,0.00014684,2]
[424381044,1780824649000,-161.58263054,0.00014684,2]
[424381049,1780824649000,-161.58263054,0.00014699,2]
[424381048,1780824649000,-150.0,0.00014691,2]
[424381073,1780824649000,-150.0,0.00014768,2]
[424381063,1780824649000,-150.0,0.00014739,2]
[424381053,1780824649000,-150.0,0.00014712,2]
[424381054,1780824649000,-161.58263054,0.00014714,2]
[424381058,1780824649000,-161.58263054,0.00014729,2]
[424381055,1780824649000,-548.29484665,0.00014714,2]
[424381064,1780824649000,-161.58263054,0.00014744,2]
[424381057,1780824649000,-150.0,0.00014722,2]
[424381052,1780824649000,-150.0,0.00014705,2]
[424381061,1780824649000,-150.0,0.00014737,2]
[424381050,1780824649000,-548.29484665,0.00014699,2]
[424381051,1780824649000,-150.0,0.00014704,2]
[424381059,1780824649000,-548.29484665,0.00014729,2]
[424381060,1780824649000,-150.0,0.00014733,2]
[424381056,1780824649000,-4649.9746482,0.00014721,2]
[424381098,1780824649000,-150.0,0.00014845,2]
[424381113,1780824649000,-500.0,0.0001488,2]
[424381099,1780824649000,-161.58263054,0.0001485,2]
[424381133,1780824649000,-2150.04494736,0.000149,2]
[424381137,1780824649000,-158.59104539,0.000149,2]
[424381140,1780824649000,-250.0,0.000149,2]
[424381134,1780824649000,-25000.0,0.000149,3]
[424381136,1780824649000,-435.81413714,0.000149,3]
[424381139,1780824649000,-1500.0,0.000149,2]
[424381144,1780824649000,-548.29484665,0.00014911,2]
[424381146,1780824649000,-150.0,0.00014923,2]
[424381148,1780824649000,-150.0,0.00014924,2]
[424381149,1780824649000,-161.58263054,0.00014926,2]
[424381145,1780824649000,-150.0,0.00014916,2]
[424381147,1780824649000,-150.0,0.00014924,2]
[424381155,1780824649000,-300.0,0.00014928,2]
[424381157,1780824649000,-300.0,0.00014928,2]
[424381156,1780824649000,-300.0,0.00014928,2]
[424381153,1780824649000,-300.0,0.00014928,2]
[424381152,1780824649000,-300.0,0.00014928,2]
[424381166,1780824649000,-500.0,0.00014941,2]
[424381165,1780824649000,-500.0,0.00014941,2]
[424381168,1780824649000,-500.0,0.00014941,2]
[424381161,1780824649000,-150.0,0.00014933,2]
[424381160,1780824649000,-283.0,0.00014928,2]
[424381167,1780824649000,-500.0,0.00014941,2]
[424381135,1780824649000,-25000.0,0.000149,3]
[424381097,1780824649000,-369.45828506,0.0001484,2]
[424381164,1780824649000,-500.0,0.00014941,2]
[424381158,1780824649000,-300.0,0.00014928,2]
[424381159,1780824649000,-300.0,0.00014928,2]
[424381154,1780824649000,-300.0,0.00014928,2]
[424381151,1780824649000,-300.0,0.00014928,2]
[424381150,1780824649000,-548.29484665,0.00014926,2]
[424381163,1780824649000,-548.29484665,0.00014941,2]
[424381138,1780824649000,-6396.6126704,0.000149,2]
[424381162,1780824649000,-161.58263054,0.00014941,2]
[424381142,1780824649000,-291.49330483,0.00014908,2]
[424381132,1780824649000,-25000.0,0.000149,3]
[424381103,1780824649000,-150.0,0.00014861,2]
[424381115,1780824649000,-500.0,0.0001488,2]
[424381114,1780824649000,-503.66,0.0001488,2]
[424381104,1780824649000,-150.0,0.00014863,2]
[424381112,1780824649000,-500.0,0.00014876,2]
[424381106,1780824649000,-548.29484665,0.00014865,2]
[424381108,1780824649000,-752.76,0.00014876,2]
[424381105,1780824649000,-161.58263054,0.00014865,2]
[424381107,1780824649000,-500.0,0.00014876,2]
[424381109,1780824649000,-500.0,0.00014876,2]
[424381110,1780824649000,-505.55,0.00014876,2]
[424381111,1780824649000,-500.0,0.00014876,2]
[424381117,1780824649000,-548.29484665,0.0001488,2]
[424381128,1780824649000,-500.0,0.00014899,2]
[424381102,1780824649000,-150.0,0.00014861,2]
[424381129,1780824649000,-500.0,0.00014899,2]
[424381116,1780824649000,-161.58263054,0.0001488,2]
[424381143,1780824649000,-161.58263054,0.00014911,2]
[424381141,1780824649000,-150.0,0.00014902,2]
[424381131,1780824649000,-25000.0,0.000149,3]
[424381124,1780824649000,-500.0,0.00014899,2]
[424381120,1780824649000,-150.0,0.00014893,2]
[424381126,1780824649000,-500.0,0.00014899,2]
[424381130,1780824649000,-10756.24887527,0.000149,2]
[424381121,1780824649000,-161.58263054,0.00014895,2]
[424381125,1780824649000,-500.0,0.00014899,2]
[424381123,1780824649000,-150.0,0.00014898,2]
[424381122,1780824649000,-548.29484665,0.00014895,2]
[424381119,1780824649000,-150.0,0.00014881,2]
[424381118,1780824649000,-150.0,0.00014881,2]
[424381127,1780824649000,-500.0,0.00014899,2]
[424381205,1780824650000,-656.0,0.00014967,2]
[424381202,1780824650000,-229.0,0.00014967,2]
[424381209,1780824650000,-744.0,0.00014967,2]
[424381208,1780824650000,-480.0,0.00014967,2]
[424381201,1780824650000,-300.0,0.00014967,2]
[424381203,1780824650000,-420.0,0.00014967,2]
[424381200,1780824650000,-300.0,0.00014967,2]
[424381198,1780824650000,-300.0,0.00014967,2]
[424381195,1780824650000,-300.0,0.00014967,2]
[424381207,1780824650000,-246.0,0.00014967,2]
[424381204,1780824650000,-220.0,0.00014967,2]
[424381214,1780824650000,-700.0,0.0001497,2]
[424381210,1780824650000,-433.0,0.00014967,2]
[424381199,1780824650000,-300.0,0.00014967,2]
[424381212,1780824650000,-846.86994351,0.0001497,2]
[424381211,1780824650000,-150.0,0.00014969,2]
[424381213,1780824650000,-700.0,0.0001497,2]
[424381217,1780824650000,-161.58263054,0.00014971,2]
[424381218,1780824650000,-548.29484665,0.00014971,2]
[424381219,1780824650000,-272.0,0.00014977,2]
[424381215,1780824650000,-500.0,0.0001497,2]
[424381220,1780824650000,-400.0,0.0001498,2]
[424381194,1780824650000,-300.0,0.00014967,2]
[424381206,1780824650000,-692.0,0.00014967,2]
[424381191,1780824650000,-1672.7364795,0.00014962,2]
[424381180,1780824650000,-500.0,0.00014941,2]
[424381193,1780824650000,-300.0,0.00014967,2]
[424381216,1780824650000,-500.0,0.0001497,2]
[424381169,1780824650000,-500.0,0.00014941,2]
[424381171,1780824650000,-500.0,0.00014941,2]
[424381170,1780824650000,-500.0,0.00014941,2]
[424381172,1780824650000,-500.0,0.00014941,2]
[424381173,1780824650000,-500.0,0.00014941,2]
[424381181,1780824650000,-500.0,0.00014941,2]
[424381176,1780824650000,-500.0,0.00014941,2]
[424381177,1780824650000,-500.0,0.00014941,2]
[424381184,1780824650000,-514.883158,0.00014941,2]
[424381179,1780824650000,-500.0,0.00014941,2]
[424381190,1780824650000,-1148.61238259,0.00014962,2]
[424381174,1780824650000,-500.0,0.00014941,2]
[424381175,1780824650000,-500.0,0.00014941,2]
[424381178,1780824650000,-500.0,0.00014941,2]
[424381182,1780824650000,-500.0,0.00014941,2]
[424381186,1780824650000,-150.0,0.00014951,2]
[424381197,1780824650000,-300.0,0.00014967,2]
[424381196,1780824650000,-300.0,0.00014967,2]
[424381188,1780824650000,-161.58263054,0.00014956,2]
[424381185,1780824650000,-150.0,0.00014944,2]
[424381192,1780824650000,-150.0,0.00014965,2]
[424381189,1780824650000,-548.29484665,0.00014956,2]
[424381187,1780824650000,-150.0,0.00014955,2]
[424381183,1780824650000,-500.0,0.00014941,2]
[424381221,1780824650000,-256.28893884,0.00014986,2]
[424381253,1780824650000,-315.399416,0.00014998,2]
[424381225,1780824650000,-151.0,0.00014986,2]
[424381255,1780824650000,-151.0,0.00014998,2]
[424381248,1780824650000,-500.0,0.00014998,2]
[424381250,1780824650000,-315.399416,0.00014998,2]
[424381251,1780824650000,-315.399416,0.00014998,2]
[424381257,1780824650000,-1064.43041802,0.00014998,3]
[424381267,1780824650000,-500.0,0.00014999,2]
[424381259,1780824650000,-30000.0,0.00014998,2]
[424381258,1780824650000,-1430.24894506,0.00014998,3]
[424381256,1780824650000,-151.0,0.00014998,2]
[424381261,1780824650000,-11259.1812576,0.00014998,3]
[424381260,1780824650000,-1281.44187089,0.00014998,3]
[424381262,1780824650000,-500.0,0.00014999,2]
[424381264,1780824650000,-500.0,0.00014999,2]
[424381263,1780824650000,-500.0,0.00014999,2]
[424381265,1780824650000,-500.0,0.00014999,2]
[424381266,1780824650000,-500.0,0.00014999,2]
[424381271,1780824650000,-500.0,0.00014999,6]
[424381268,1780824650000,-500.0,0.00014999,2]
[424381272,1780824650000,-500.0,0.00014999,2]
[424381270,1780824650000,-525.18461238,0.00014999,2]
[424381273,1780824650000,-500.0,0.00014999,2]
[424381274,1780824650000,-500.0,0.00014999,2]
[424381269,1780824650000,-500.0,0.00014999,2]
[424381254,1780824650000,-151.0,0.00014998,2]
[424381246,1780824650000,-151.0,0.00014998,2]
[424381223,1780824650000,-154.25157582,0.00014986,2]
[424381249,1780824650000,-500.0,0.00014998,2]
[424381224,1780824650000,-159.23488025,0.00014986,2]
[424381233,1780824650000,-255.0,0.00014992,2]
[424381222,1780824650000,-150.70123383,0.00014986,2]
[424381227,1780824650000,-151.25809944,0.00014986,2]
[424381228,1780824650000,-235.35108171,0.00014986,2]
[424381226,1780824650000,-151.0,0.00014986,2]
[424381232,1780824650000,-369.45828506,0.0001499,2]
[424381231,1780824650000,-548.29484665,0.00014986,2]
[424381229,1780824650000,-150.5291579,0.00014986,2]
[424381230,1780824650000,-161.58263054,0.00014986,2]
[424381235,1780824650000,-151.0,0.00014997,2]
[424381241,1780824650000,-752.76,0.00014998,2]
[424381252,1780824650000,-315.399416,0.00014998,2]
[424381234,1780824650000,-978.78236065,0.00014997,3]
[424381242,1780824650000,-500.0,0.00014998,2]
[424381275,1780824650000,-500.0,0.00014999,2]
[424381247,1780824650000,-505.55,0.00014998,2]
[424381239,1780824650000,-500.0,0.00014998,2]
[424381240,1780824650000,-503.66,0.00014998,2]
[424381245,1780824650000,-151.0,0.00014998,2]
[424381238,1780824650000,-500.0,0.00014998,2]
[424381236,1780824650000,-500.0,0.00014998,2]
[424381244,1780824650000,-500.0,0.00014998,2]
[424381243,1780824650000,-500.0,0.00014998,2]
[424381237,1780824650000,-500.0,0.00014998,5]
[424381311,1780824651000,-752.76,0.00014999,2]
[424381317,1780824651000,-500.0,0.00014999,2]
[424381315,1780824651000,-752.76,0.00014999,2]
[424381312,1780824651000,-752.76,0.00014999,2]
[424381308,1780824651000,-752.76,0.00014999,2]
[424381305,1780824651000,-503.66,0.00014999,2]
[424381310,1780824651000,-752.76,0.00014999,2]
[424381309,1780824651000,-752.76,0.00014999,2]
[424381307,1780824651000,-503.66215498,0.00014999,2]
[424381316,1780824651000,-752.76175492,0.00014999,2]
[424381306,1780824651000,-752.76,0.00014999,2]
[424381319,1780824651000,-500.0,0.00014999,2]
[424381318,1780824651000,-500.0,0.00014999,2]
[424381322,1780824651000,-500.0,0.00014999,2]
[424381323,1780824651000,-430.74661107,0.00014999,2]
[424381321,1780824651000,-500.0,0.00014999,2]
[424381314,1780824651000,-752.76,0.00014999,2]
[424381325,1780824651000,-500.0,0.00014999,2]
[424381324,1780824651000,-500.0,0.00014999,2]
[424381335,1780824651000,-200.90861589,0.00014999,2]
[424381329,1780824651000,-500.0,0.00014999,2]
[424381326,1780824651000,-500.0,0.00014999,2]
[424381330,1780824651000,-500.0,0.00014999,2]
[424381328,1780824651000,-162.54113517,0.00014999,2]
[424381327,1780824651000,-500.0,0.00014999,2]
[424381320,1780824651000,-500.0,0.00014999,2]
[424381313,1780824651000,-752.76,0.00014999,2]
[424381298,1780824651000,-503.66,0.00014999,2]
[424381300,1780824651000,-503.66,0.00014999,2]
[424381279,1780824651000,-500.0,0.00014999,2]
[424381277,1780824651000,-500.0,0.00014999,2]
[424381276,1780824651000,-500.0,0.00014999,2]
[424381278,1780824651000,-500.0,0.00014999,2]
[424381281,1780824651000,-500.0,0.00014999,2]
[424381291,1780824651000,-229.78920833,0.00014999,2]
[424381283,1780824651000,-500.0,0.00014999,2]
[424381280,1780824651000,-500.0,0.00014999,2]
[424381284,1780824651000,-500.0,0.00014999,2]
[424381285,1780824651000,-500.0,0.00014999,2]
[424381282,1780824651000,-500.0,0.00014999,2]
[424381286,1780824651000,-500.0,0.00014999,2]
[424381287,1780824651000,-500.0,0.00014999,2]
[424381288,1780824651000,-500.0,0.00014999,2]
[424381290,1780824651000,-500.0,0.00014999,2]
[424381334,1780824651000,-500.0,0.00014999,2]
[424381292,1780824651000,-503.66,0.00014999,2]
[424381296,1780824651000,-503.66,0.00014999,2]
[424381294,1780824651000,-503.66,0.00014999,2]
[424381295,1780824651000,-503.66,0.00014999,2]
[424381302,1780824651000,-752.76,0.00014999,2]
[424381293,1780824651000,-503.66,0.00014999,2]
[424381301,1780824651000,-503.66,0.00014999,2]
[424381297,1780824651000,-503.66,0.00014999,2]
[424381299,1780824651000,-503.66,0.00014999,2]
[424381304,1780824651000,-752.76,0.00014999,2]
[424381331,1780824651000,-500.0,0.00014999,2]
[424381289,1780824651000,-500.0,0.00014999,2]
[424381332,1780824651000,-500.0,0.00014999,2]
[424381368,1780824651000,-500.0,0.00014999,2]
[424381364,1780824651000,-505.55,0.00014999,2]
[424381367,1780824651000,-505.55,0.00014999,2]
[424381369,1780824651000,-505.55,0.00014999,2]
[424381365,1780824651000,-505.55,0.00014999,2]
[424381371,1780824651000,-500.0,0.00014999,2]
[424381370,1780824651000,-505.67253821,0.00014999,2]
[424381374,1780824651000,-362.57882256,0.00014999,2]
[424381377,1780824651000,-500.0,0.00014999,2]
[424381373,1780824651000,-500.0,0.00014999,2]
[424381375,1780824651000,-151.0,0.00014999,2]
[424381384,1780824651000,-500.0,0.00014999,2]
[424381376,1780824651000,-500.0,0.00014999,2]
[424381378,1780824651000,-502.27842691,0.00014999,2]
[424381380,1780824651000,-500.0,0.00014999,2]
[424381381,1780824651000,-500.0,0.00014999,2]
[424381383,1780824651000,-180.75393782,0.00014999,2]
[424381379,1780824651000,-500.0,0.00014999,2]
[424381382,1780824651000,-581.39588247,0.00014999,2]
[424381385,1780824651000,-500.0,0.00014999,2]
[424381387,1780824651000,-500.0,0.00014999,2]
[424381389,1780824651000,-500.0,0.00014999,2]
[424381390,1780824651000,-500.0,0.00014999,2]
[424381386,1780824651000,-500.0,0.00014999,2]
[424381388,1780824651000,-500.0,0.00014999,2]
[424381391,1780824651000,-500.0,0.00014999,2]
[424381333,1780824651000,-500.0,0.00014999,2]
[424381363,1780824651000,-505.55,0.00014999,2]
[424381366,1780824651000,-505.55,0.00014999,2]
[424381303,1780824651000,-503.66,0.00014999,2]
[424381372,1780824651000,-500.0,0.00014999,2]
[424381336,1780824651000,-500.0,0.00014999,2]
[424381337,1780824651000,-500.0,0.00014999,2]
[424381340,1780824651000,-500.0,0.00014999,2]
[424381339,1780824651000,-500.0,0.00014999,2]
[424381343,1780824651000,-500.0,0.00014999,2]
[424381347,1780824651000,-382.74673923,0.00014999,2]
[424381341,1780824651000,-500.0,0.00014999,2]
[424381342,1780824651000,-500.0,0.00014999,2]
[424381344,1780824651000,-500.0,0.00014999,2]
[424381346,1780824651000,-500.0,0.00014999,2]
[424381345,1780824651000,-500.0,0.00014999,2]
[424381349,1780824651000,-500.0,0.00014999,2]
[424381359,1780824651000,-505.55,0.00014999,2]
[424381338,1780824651000,-500.0,0.00014999,2]
[424381352,1780824651000,-500.0,0.00014999,2]
[424381361,1780824651000,-505.55,0.00014999,2]
[424381348,1780824651000,-500.0,0.00014999,2]
[424381362,1780824651000,-505.55,0.00014999,2]
[424381357,1780824651000,-172.00051313,0.00014999,2]
[424381358,1780824651000,-505.55,0.00014999,2]
[424381355,1780824651000,-500.0,0.00014999,2]
[424381350,1780824651000,-500.0,0.00014999,2]
[424381354,1780824651000,-500.0,0.00014999,2]
[424381353,1780824651000,-500.0,0.00014999,2]
[424381351,1780824651000,-500.0,0.00014999,2]
[424381360,1780824651000,-505.55,0.00014999,2]
[424381356,1780824651000,-500.0,0.00014999,2]
[424381416,1780824652000,-500.0,0.00014999,2]
[424381423,1780824652000,-500.0,0.00014999,2]
[424381415,1780824652000,-500.0,0.00014999,2]
[424381419,1780824652000,-500.0,0.00014999,2]
[424381417,1780824652000,-500.0,0.00014999,2]
[424381418,1780824652000,-500.0,0.00014999,2]
[424381420,1780824652000,-500.0,0.00014999,2]
[424381425,1780824652000,-500.0,0.00014999,2]
[424381421,1780824652000,-500.0,0.00014999,2]
[424381412,1780824652000,-500.0,0.00014999,2]
[424381422,1780824652000,-500.0,0.00014999,2]
[424381424,1780824652000,-500.0,0.00014999,2]
[424381428,1780824652000,-500.0,0.00014999,2]
[424381427,1780824652000,-500.0,0.00014999,2]
[424381411,1780824652000,-500.0,0.00014999,2]
[424381413,1780824652000,-500.0,0.00014999,2]
[424381414,1780824652000,-500.0,0.00014999,2]
[424381394,1780824652000,-500.0,0.00014999,2]
[424381409,1780824652000,-500.0,0.00014999,2]
[424381395,1780824652000,-500.0,0.00014999,2]
[424381392,1780824652000,-500.0,0.00014999,2]
[424381393,1780824652000,-500.0,0.00014999,2]
[424381397,1780824652000,-500.0,0.00014999,2]
[424381396,1780824652000,-500.0,0.00014999,2]
[424381426,1780824652000,-500.0,0.00014999,2]
[424381398,1780824652000,-500.0,0.00014999,2]
[424381401,1780824652000,-500.0,0.00014999,2]
[424381402,1780824652000,-500.0,0.00014999,2]
[424381403,1780824652000,-500.0,0.00014999,2]
[424381404,1780824652000,-500.0,0.00014999,2]
[424381400,1780824652000,-500.0,0.00014999,2]
[424381399,1780824652000,-500.0,0.00014999,2]
[424381405,1780824652000,-500.0,0.00014999,2]
[424381406,1780824652000,-500.0,0.00014999,2]